[Event "Manhemjunioren 2024"]
[Site "Goteborgs Schackcentrum, Vegatan 20, Gothenburg, Sweden"]
[Date "2024.04.06"]
[Round "1.1"]
[White "Havner, Arvid"]
[Black "Lappas Lonnermark, Johannes"]
[Result "0-1"]
[TimeControl "18 minutes + 10 seconds per move from move one."]
[WhiteFideId "1769308"]
[BlackFideId "1773437"]
[WhiteElo "1782"]
[BlackElo "1577"]

1. d4 {[%clk 00:18:19]} {[%emt 00:00:01]} d5 {[%clk 00:18:18]} {[%emt
00:00:02]} 2. c4 {[%clk 00:18:28]} {[%emt 00:00:02]} c6 {[%clk 00:18:26]}
{[%emt 00:00:02]} 3. Nf3 {[%clk 00:18:29]} {[%emt 00:00:08]} Nf6 {[%clk
00:18:34]} {[%emt 00:00:03]} 4. e3 {[%clk 00:18:18]} {[%emt 00:00:21]} e6
{[%clk 00:18:41]} {[%emt 00:00:03]} 5. Nc3 {[%clk 00:18:25]} {[%emt 00:00:02]}
Nbd7 {[%clk 00:18:48]} {[%emt 00:00:04]} 6. Bd3 {[%clk 00:18:25]} {[%emt
00:00:10]} dxc4 {[%clk 00:18:55]} {[%emt 00:00:03]} 7. Bxc4 {[%clk 00:18:33]}
{[%emt 00:00:02]} b5 {[%clk 00:19:03]} {[%emt 00:00:01]} 8. Bd3 {[%clk
00:18:27]} {[%emt 00:00:16]} a6 {[%clk 00:19:09]} {[%emt 00:00:05]} 9. O-O
{[%clk 00:18:18]} {[%emt 00:00:18]} c5 {[%clk 00:19:15]} {[%emt 00:00:04]} 10.
dxc5 {[%clk 00:16:50]} {[%emt 00:01:39]} Nxc5 {[%clk 00:18:25]} {[%emt
00:01:00]} 11. Be2 {[%clk 00:16:03]} {[%emt 00:00:57]} Bb7 {[%clk 00:18:11]}
{[%emt 00:00:24]} 12. b3 {[%clk 00:13:35]} {[%emt 00:02:38]} Be7 {[%clk
00:17:21]} {[%emt 00:01:00]} 13. Bb2 {[%clk 00:13:24]} {[%emt 00:00:21]} O-O
{[%clk 00:17:21]} {[%emt 00:00:10]} 14. Rc1 {[%clk 00:13:28]} {[%emt 00:00:05]}
Rc8 {[%clk 00:14:59]} {[%emt 00:02:32]} 15. Nd4 {[%clk 00:12:39]} {[%emt
00:01:00]} Qb6 {[%clk 00:11:15]} {[%emt 00:03:54]} 16. Bf3 {[%clk 00:11:17]}
{[%emt 00:01:31]} Rfd8 {[%clk 00:11:08]} {[%emt 00:00:17]} 17. Bxb7 {[%clk
00:10:08]} {[%emt 00:01:19]} Qxb7 {[%clk 00:11:12]} {[%emt 00:00:06]} 18. Qf3
{[%clk 00:09:47]} {[%emt 00:00:31]} Qxf3 {[%clk 00:11:13]} {[%emt 00:00:10]} 19.
Nxf3 {[%clk 00:09:56]} {[%emt 00:00:01]} Nd3 {[%clk 00:11:18]} {[%emt
00:00:05]} 20. Rcd1 {[%clk 00:02:44]} {[%emt 00:07:22]} Nxb2 {[%clk 00:11:19]}
{[%emt 00:00:09]} 21. Rxd8+ {[%clk 00:02:53]} {[%emt 00:00:01]} Rxd8 {[%clk
00:11:27]} {[%emt 00:00:02]} 22. Ne5 {[%clk 00:02:44]} {[%emt 00:00:18]} Rc8
{[%clk 00:09:57]} {[%emt 00:01:40]} 23. Ne2 {[%clk 00:02:18]} {[%emt 00:00:36]}
Bd6 {[%clk 00:09:47]} {[%emt 00:00:21]} 24. Nf3 {[%clk 00:01:41]} {[%emt
00:00:46]} Nd3 {[%clk 00:09:43]} {[%emt 00:00:14]} 25. Rd1 {[%clk 00:01:45]}
{[%emt 00:00:05]} Rd8 {[%clk 00:08:56]} {[%emt 00:00:58]} 26. Ned4 {[%clk
00:00:15]} {[%emt 00:01:40]} Ne5 {[%clk 00:08:38]} {[%emt 00:00:28]} 0-1

[Event "Manhemjunioren 2024"]
[Site "Goteborgs Schackcentrum, Vegatan 20, Gothenburg, Sweden"]
[Date "2024.04.06"]
[Round "1.2"]
[White "Sivarama, Saadhvik"]
[Black "Yang, Mandi"]
[Result "1/2-1/2"]
[TimeControl "18 minutes + 10 seconds per move from move one."]
[WhiteFideId "1773720"]
[BlackFideId "1774778"]
[WhiteElo "1566"]
[BlackElo "1738"]

1. e4 {[%clk 00:18:18]} {[%emt 00:00:01]} c5 {[%clk 00:18:18]} {[%emt
00:00:02]} 2. Nf3 {[%clk 00:18:15]} {[%emt 00:00:13]} e6 {[%clk 00:18:27]}
{[%emt 00:00:02]} 3. c4 {[%clk 00:18:01]} {[%emt 00:00:25]} Nc6 {[%clk
00:18:22]} {[%emt 00:00:15]} 4. Nc3 {[%clk 00:17:54]} {[%emt 00:00:16]} Nf6
{[%clk 00:18:10]} {[%emt 00:00:22]} 5. d4 {[%clk 00:16:55]} {[%emt 00:01:09]}
cxd4 {[%clk 00:18:16]} {[%emt 00:00:04]} 6. Nxd4 {[%clk 00:16:55]} {[%emt
00:00:10]} a6 {[%clk 00:18:00]} {[%emt 00:00:27]} 7. g3 {[%clk 00:16:36]}
{[%emt 00:00:28]} Bb4 {[%clk 00:15:49]} {[%emt 00:02:22]} 8. Bg2 {[%clk
00:15:05]} {[%emt 00:01:40]} Qc7 {[%clk 00:15:38]} {[%emt 00:00:21]} 9. Nxc6
{[%clk 00:14:16]} {[%emt 00:00:59]} Qxc6 {[%clk 00:15:37]} {[%emt 00:00:11]} 10.
Qb3 {[%clk 00:13:22]} {[%emt 00:01:04]} Bc5 {[%clk 00:13:36]} {[%emt 00:02:10]}
11. O-O {[%clk 00:13:04]} {[%emt 00:00:29]} Qb6 {[%clk 00:12:42]} {[%emt
00:01:04]} 12. Qxb6 {[%clk 00:12:28]} {[%emt 00:00:46]} Bxb6 {[%clk 00:12:50]}
{[%emt 00:00:03]} 13. Bg5 {[%clk 00:11:46]} {[%emt 00:00:50]} Bc7 {[%clk
00:11:58]} {[%emt 00:01:03]} 14. Be3 {[%clk 00:11:10]} {[%emt 00:00:47]} O-O
{[%clk 00:11:12]} {[%emt 00:00:56]} 15. Rad1 {[%clk 00:10:15]} {[%emt
00:01:05]} Rd8 {[%clk 00:08:24]} {[%emt 00:02:58]} 16. Rfe1 {[%clk 00:08:23]}
{[%emt 00:02:02]} Ng4 {[%clk 00:07:27]} {[%emt 00:01:07]} 17. Bf3 {[%clk
00:07:46]} {[%emt 00:00:46]} Nxe3 {[%clk 00:07:35]} {[%emt 00:00:03]} 18. Rxe3
{[%clk 00:07:33]} {[%emt 00:00:23]} Rb8 {[%clk 00:06:09]} {[%emt 00:01:37]} 19.
a4 {[%clk 00:05:59]} {[%emt 00:01:44]} Be5 {[%clk 00:06:01]} {[%emt 00:00:17]}
20. Red3 {[%clk 00:05:02]} {[%emt 00:01:06]} b6 {[%clk 00:04:45]} {[%emt
00:01:27]} 21. Bg2 {[%clk 00:04:45]} {[%emt 00:00:28]} Bc7 {[%clk 00:03:15]}
{[%emt 00:01:40]} 22. R1d2 {[%clk 00:03:28]} {[%emt 00:01:27]} f6 {[%clk
00:03:08]} {[%emt 00:00:16]} 23. Rd1 {[%clk 00:02:59]} {[%emt 00:00:39]} Kf7
{[%clk 00:02:38]} {[%emt 00:00:41]} 24. f4 {[%clk 00:02:31]} {[%emt 00:00:37]}
g6 {[%clk 00:02:14]} {[%emt 00:00:34]} 25. Re1 {[%clk 00:02:03]} {[%emt
00:00:37]} Bb7 {[%clk 00:02:14]} {[%emt 00:00:10]} 26. b4 {[%clk 00:01:29]}
{[%emt 00:00:44]} Rbc8 {[%clk 00:02:05]} {[%emt 00:00:20]} 27. e5 {[%clk
00:01:00]} {[%emt 00:00:40]} Bxg2 {[%clk 00:02:12]} {[%emt 00:00:02]} 28. Kxg2
{[%clk 00:01:08]} {[%emt 00:00:02]} fxe5 {[%clk 00:00:55]} {[%emt 00:01:27]} 29.
fxe5 {[%clk 00:01:14]} {[%emt 00:00:03]} Kg7 {[%clk 00:01:04]} {[%emt
00:00:02]} 30. Kf3 {[%clk 00:00:52]} {[%emt 00:00:33]} d6 {[%clk 00:00:45]}
{[%emt 00:00:29]} 31. exd6 {[%clk 00:00:50]} {[%emt 00:00:11]} Rxd6 {[%clk
00:00:54]} {[%emt 00:00:02]} 32. Rxd6 {[%clk 00:00:49]} {[%emt 00:00:10]} Bxd6
{[%clk 00:01:03]} 33. c5 {[%clk 00:00:24]} {[%emt 00:00:36]} bxc5 {[%clk
00:00:51]} {[%emt 00:00:21]} 34. Rxe6 {[%clk 00:00:29]} {[%emt 00:00:05]} cxb4
{[%clk 00:00:44]} {[%emt 00:00:17]} 35. Rxd6 {[%clk 00:00:25]} {[%emt
00:00:14]} bxc3 {[%clk 00:00:39]} {[%emt 00:00:14]} 36. Rd1 {[%clk 00:00:33]}
{[%emt 00:00:01]} Rc4 {[%clk 00:00:26]} {[%emt 00:00:23]} 37. Rc1 {[%clk
00:00:42]} {[%emt 00:00:02]} Rxa4 {[%clk 00:00:18]} {[%emt 00:00:18]} 38. Rxc3
{[%clk 00:00:51]} Kf6 {[%clk 00:00:19]} {[%emt 00:00:10]} 39. Rc7 {[%clk
00:00:58]} {[%emt 00:00:03]} h5 {[%clk 00:00:25]} {[%emt 00:00:04]} 40. Rc6+
{[%clk 00:01:05]} {[%emt 00:00:02]} Kf5 {[%clk 00:00:31]} {[%emt 00:00:04]} 41.
Rc5+ {[%clk 00:01:13]} {[%emt 00:00:02]} Kf6 {[%clk 00:00:37]} {[%emt
00:00:04]} 42. Rc6+ {[%clk 00:01:21]} {[%emt 00:00:03]} Kg7 {[%clk 00:00:44]}
{[%emt 00:00:03]} 43. Rc7+ {[%clk 00:01:30]} {[%emt 00:00:02]} Kh6 {[%clk
00:00:52]} {[%emt 00:00:02]} 44. h4 {[%clk 00:01:24]} {[%emt 00:00:16]} a5
{[%clk 00:00:53]} {[%emt 00:00:09]} 45. Ra7 {[%clk 00:01:16]} {[%emt 00:00:17]}
Ra1 {[%clk 00:00:42]} {[%emt 00:00:21]} 46. Ke2 {[%clk 00:01:12]} {[%emt
00:00:12]} a4 {[%clk 00:00:44]} {[%emt 00:00:11]} 47. Kf2 {[%clk 00:00:59]}
{[%emt 00:00:23]} a3 {[%clk 00:00:52]} {[%emt 00:00:02]} 48. Kg2 {[%clk
00:01:05]} {[%emt 00:00:03]} a2 {[%clk 00:00:53]} {[%emt 00:00:09]} 49. Kh2
{[%clk 00:00:54]} {[%emt 00:00:21]} g5 {[%clk 00:00:15]} {[%emt 00:00:48]} 50.
Ra6+ {[%clk 00:01:02]} {[%emt 00:00:02]} Kg7 {[%clk 00:00:21]} {[%emt
00:00:04]} 51. hxg5 {[%clk 00:01:10]} {[%emt 00:00:01]} Kf7 {[%clk 00:00:24]}
{[%emt 00:00:08]} 52. Kg2 {[%clk 00:01:11]} {[%emt 00:00:09]} Kg7 {[%clk
00:00:32]} {[%emt 00:00:02]} 53. Kh2 {[%clk 00:01:12]} {[%emt 00:00:09]} Kf7
{[%clk 00:00:32]} {[%emt 00:00:10]} 54. Kg2 {[%clk 00:01:14]} {[%emt 00:00:08]}
Kg7 {[%clk 00:00:38]} {[%emt 00:00:03]} 55. Kh2 {[%clk 00:01:22]} {[%emt
00:00:03]} Kf7 {[%clk 00:00:37]} {[%emt 00:00:10]} 56. Ra7+ {[%clk 00:01:23]}
{[%emt 00:00:11]} Kg6 {[%clk 00:00:42]} {[%emt 00:00:04]} 57. Ra5 {[%clk
00:01:30]} {[%emt 00:00:03]} Rd1 {[%clk 00:00:26]} {[%emt 00:00:26]} 58. Rxa2
{[%clk 00:01:35]} {[%emt 00:00:05]} Kxg5 {[%clk 00:00:34]} {[%emt 00:00:02]} 59.
Ra5+ {[%clk 00:01:42]} {[%emt 00:00:03]} Kg4 {[%clk 00:00:40]} {[%emt
00:00:03]} 60. Ra4+ {[%clk 00:01:51]} {[%emt 00:00:02]} Kg5 {[%clk 00:00:45]}
{[%emt 00:00:05]} 61. Ra5+ {[%clk 00:02:00]} {[%emt 00:00:01]} Kg6 {[%clk
00:00:50]} {[%emt 00:00:05]} 62. Ra6+ {[%clk 00:02:09]} {[%emt 00:00:01]} Kg5
{[%clk 00:00:59]} {[%emt 00:00:01]} 63. Ra5+ {[%clk 00:02:18]} {[%emt
00:00:01]} Kg6 {[%clk 00:01:07]} 64. Ra6+ {[%clk 00:02:27]} {[%emt 00:00:01]}
Kg5 {[%clk 00:01:16]} {[%emt 00:00:02]} 65. Ra5+ {[%clk 00:02:26]} {[%emt
00:00:10]} Kg6 {[%clk 00:01:25]} {[%emt 00:00:01]} 66. Ra6+ {[%clk 00:02:31]}
{[%emt 00:00:06]} 1/2-1/2

[Event "Manhemjunioren 2024"]
[Site "Goteborgs Schackcentrum, Vegatan 20, Gothenburg, Sweden"]
[Date "2024.04.06"]
[Round "1.3"]
[White "Norberg, Arild"]
[Black "Ramovic, Isak"]
[Result "1-0"]
[TimeControl "18 minutes + 10 seconds per move from move one."]
[WhiteFideId "1774484"]
[BlackFideId "1779281"]
[WhiteElo "1683"]
[BlackElo "1561"]

1. d4 {[%clk 00:18:17]} {[%emt 00:00:02]} Nf6 {[%emt 00:00:03]} 2. Nc3 {[%emt
00:00:10]} d5 {[%clk 00:18:22]} 3. Bf4 {[%clk 00:18:23]} {[%emt 00:00:09]} c6
{[%clk 00:18:02]} {[%emt 00:00:31]} 4. Nf3 {[%clk 00:18:20]} {[%emt 00:00:12]}
Bf5 {[%emt 00:00:16]} 5. e3 {[%clk 00:18:06]} {[%emt 00:00:21]} e6 {[%clk
00:17:59]} {[%emt 00:00:11]} 6. a3 {[%clk 00:17:52]} {[%emt 00:00:24]} Be7
{[%clk 00:17:11]} {[%emt 00:00:58]} 7. Bd3 {[%clk 00:17:48]} {[%emt 00:00:13]}
Bxd3 {[%clk 00:17:18]} {[%emt 00:00:04]} 8. Qxd3 {[%clk 00:17:43]} {[%emt
00:00:15]} Nbd7 {[%clk 00:16:39]} {[%emt 00:00:49]} 9. h4 {[%clk 00:17:29]}
{[%emt 00:00:23]} Nh5 {[%clk 00:15:48]} {[%emt 00:01:01]} 10. g3 {[%clk
00:16:36]} {[%emt 00:01:03]} f5 {[%clk 00:13:40]} {[%emt 00:02:19]} 11. Be5
{[%clk 00:16:20]} {[%emt 00:00:25]} Ndf6 {[%clk 00:12:53]} {[%emt 00:00:57]} 12.
Ng5 {[%clk 00:15:46]} {[%emt 00:00:44]} Qd7 {[%clk 00:09:58]} {[%emt 00:03:06]}
13. Qe2 {[%clk 00:14:36]} {[%emt 00:01:20]} h6 {[%clk 00:08:28]} {[%emt
00:01:40]} 14. Nf3 {[%clk 00:14:10]} {[%emt 00:00:36]} Bd6 {[%clk 00:08:08]}
{[%emt 00:00:30]} 15. Na4 {[%clk 00:13:30]} {[%emt 00:00:49]} Ng4 {[%clk
00:05:26]} {[%emt 00:02:53]} 16. Bxd6 {[%clk 00:13:02]} {[%emt 00:00:38]} Qxd6
{[%clk 00:05:28]} {[%emt 00:00:08]} 17. Nh2 {[%clk 00:12:40]} {[%emt 00:00:31]}
Nhf6 {[%clk 00:04:48]} {[%emt 00:00:51]} 18. Nc5 {[%clk 00:12:11]} {[%emt
00:00:38]} Rb8 {[%clk 00:04:17]} {[%emt 00:00:42]} 19. Nd3 {[%clk 00:11:50]}
{[%emt 00:00:31]} h5 {[%clk 00:03:13]} {[%emt 00:01:14]} 20. Nf3 {[%clk
00:11:44]} {[%emt 00:00:16]} Ne4 {[%clk 00:03:07]} {[%emt 00:00:17]} 21. Nfe5
{[%clk 00:11:25]} {[%emt 00:00:29]} Nxe5 {[%clk 00:01:58]} {[%emt 00:01:19]} 22.
Nxe5 {[%clk 00:11:29]} {[%emt 00:00:06]} c5 {[%clk 00:00:56]} {[%emt 00:01:12]}
23. Qb5+ {[%clk 00:11:24]} {[%emt 00:00:15]} Ke7 {[%clk 00:00:31]} {[%emt
00:00:35]} 24. Ng6+ {[%clk 00:11:20]} {[%emt 00:00:13]} Kf6 {[%clk 00:00:21]}
{[%emt 00:00:20]} 25. Nxh8 {[%clk 00:11:10]} {[%emt 00:00:20]} Rxh8 {[%clk
00:00:30]} {[%emt 00:00:02]} 26. dxc5 {[%clk 00:10:55]} {[%emt 00:00:25]} Qxc5
{[%clk 00:00:17]} {[%emt 00:00:23]} 27. Qxc5 {[%clk 00:11:02]} {[%emt
00:00:03]} Nxc5 {[%clk 00:00:25]} {[%emt 00:00:01]} 28. f3 {[%clk 00:10:55]}
{[%emt 00:00:17]} e5 {[%clk 00:00:25]} {[%emt 00:00:11]} 29. Rd1 {[%clk
00:10:47]} {[%emt 00:00:17]} Rd8 {[%clk 00:00:25]} {[%emt 00:00:11]} 30. b3
{[%clk 00:10:34]} {[%emt 00:00:23]} d4 {[%clk 00:00:19]} {[%emt 00:00:17]} 31.
Rh2 {[%clk 00:09:55]} {[%emt 00:00:48]} 1-0

[Event "Manhemjunioren 2024"]
[Site "Goteborgs Schackcentrum, Vegatan 20, Gothenburg, Sweden"]
[Date "2024.04.06"]
[Round "1.4"]
[White "Bergdahl, Martin"]
[Black "Madevan Vaishnavi, Yaashvan"]
[Result "1-0"]
[TimeControl "18 minutes + 10 seconds per move from move one."]
[WhiteFideId "1782231"]
[BlackFideId "1772180"]
[WhiteElo "1533"]
[BlackElo "1670"]

1. e4 {[%clk 00:18:19]} c5 {[%clk 00:18:17]} {[%emt 00:00:04]} 2. Nf3 {[%clk
00:18:26]} {[%emt 00:00:01]} g6 {[%clk 00:18:22]} {[%emt 00:00:06]} 3. d4
{[%clk 00:18:35]} {[%emt 00:00:02]} cxd4 {[%clk 00:18:30]} {[%emt 00:00:02]} 4.
Nxd4 {[%clk 00:18:43]} {[%emt 00:00:02]} Nc6 {[%clk 00:18:39]} {[%emt
00:00:01]} 5. Nc3 {[%clk 00:18:51]} {[%emt 00:00:02]} Bg7 {[%clk 00:18:48]}
{[%emt 00:00:01]} 6. Be3 {[%clk 00:18:58]} {[%emt 00:00:02]} Nf6 {[%clk
00:18:56]} {[%emt 00:00:02]} 7. Bc4 {[%clk 00:18:37]} {[%emt 00:00:31]} O-O
{[%clk 00:18:44]} {[%emt 00:00:22]} 8. O-O {[%clk 00:18:36]} {[%emt 00:00:10]}
d6 {[%clk 00:18:46]} {[%emt 00:00:08]} 9. f4 {[%clk 00:18:24]} {[%emt
00:00:23]} Bg4 {[%clk 00:18:29]} {[%emt 00:00:27]} 10. Nf3 {[%clk 00:18:07]}
{[%emt 00:00:27]} a6 {[%clk 00:17:45]} {[%emt 00:00:54]} 11. h3 {[%clk
00:18:06]} {[%emt 00:00:11]} Bd7 {[%clk 00:17:24]} {[%emt 00:00:31]} 12. e5
{[%clk 00:15:56]} {[%emt 00:02:19]} dxe5 {[%clk 00:17:07]} {[%emt 00:00:27]} 13.
Nxe5 {[%clk 00:15:07]} {[%emt 00:01:00]} Nxe5 {[%clk 00:16:28]} {[%emt
00:00:49]} 14. fxe5 {[%clk 00:15:15]} {[%emt 00:00:02]} Nh5 {[%clk 00:16:19]}
{[%emt 00:00:19]} 15. g4 {[%clk 00:14:54]} {[%emt 00:00:32]} Ng3 {[%clk
00:16:17]} {[%emt 00:00:11]} 16. Rf3 {[%clk 00:14:59]} {[%emt 00:00:06]} Bxe5
{[%clk 00:16:21]} {[%emt 00:00:05]} 17. Bh6 {[%clk 00:15:07]} {[%emt 00:00:03]}
Bc6 {[%clk 00:08:22]} {[%emt 00:08:09]} 18. Qe1 {[%clk 00:12:38]} {[%emt
00:02:39]} Qd4+ {[%clk 00:08:14]} {[%emt 00:00:18]} 19. Re3 {[%clk 00:12:42]}
{[%emt 00:00:06]} Bf4 {[%clk 00:03:22]} {[%emt 00:05:02]} 20. Bxf4 {[%clk
00:11:44]} {[%emt 00:01:07]} Qxf4 {[%clk 00:03:28]} {[%emt 00:00:04]} 21. Bxf7+
{[%clk 00:11:51]} {[%emt 00:00:03]} Rxf7 {[%clk 00:03:24]} {[%emt 00:00:15]} 22.
Qxg3 {[%clk 00:11:58]} {[%emt 00:00:02]} Qxg3+ {[%clk 00:03:16]} {[%emt
00:00:19]} 23. Rxg3 {[%clk 00:12:06]} {[%emt 00:00:02]} Raf8 {[%clk 00:03:23]}
{[%emt 00:00:02]} 24. Re3 {[%clk 00:10:57]} {[%emt 00:01:20]} Rf2 {[%clk
00:03:22]} {[%emt 00:00:11]} 25. Re2 {[%clk 00:11:05]} {[%emt 00:00:01]} R2f3
{[%clk 00:03:18]} {[%emt 00:00:14]} 26. Kh2 {[%clk 00:10:30]} {[%emt 00:00:46]}
Rf2+ {[%clk 00:02:58]} {[%emt 00:00:30]} 27. Kg3 {[%clk 00:10:39]} R8f3+ {[%clk
00:02:57]} {[%emt 00:00:11]} 28. Kh4 {[%clk 00:10:48]} {[%emt 00:00:01]} Rxe2
{[%clk 00:02:40]} {[%emt 00:00:28]} 29. Nxe2 {[%clk 00:10:42]} {[%emt
00:00:15]} Rf2 {[%clk 00:02:45]} {[%emt 00:00:05]} 30. Re1 {[%clk 00:10:22]}
{[%emt 00:00:29]} Bb5 {[%clk 00:02:38]} {[%emt 00:00:18]} 31. Nd4 {[%clk
00:10:31]} {[%emt 00:00:01]} Kf7 {[%clk 00:01:56]} {[%emt 00:00:52]} 32. Kg3
{[%clk 00:10:10]} {[%emt 00:00:30]} Rd2 {[%clk 00:02:03]} {[%emt 00:00:04]} 33.
Re4 {[%clk 00:08:00]} {[%emt 00:02:20]} Bc4 {[%clk 00:01:17]} {[%emt 00:00:55]}
34. Nf3 {[%clk 00:07:54]} {[%emt 00:00:17]} Rxc2 {[%clk 00:01:17]} {[%emt
00:00:11]} 35. Ne5+ {[%clk 00:08:02]} {[%emt 00:00:01]} Ke6 {[%clk 00:01:10]}
{[%emt 00:00:15]} 36. Nxc4+ {[%clk 00:07:53]} {[%emt 00:00:20]} Kd5 {[%clk
00:00:11]} {[%emt 00:01:09]} 37. Rxe7 {[%clk 00:08:02]} {[%emt 00:00:02]} Kxc4
{[%clk 00:00:16]} {[%emt 00:00:06]} 38. Rxb7 {[%clk 00:08:10]} {[%emt
00:00:02]} h6 {[%clk 00:00:21]} {[%emt 00:00:04]} 39. Rb6 {[%clk 00:08:08]}
{[%emt 00:00:12]} a5 {[%clk 00:00:25]} {[%emt 00:00:06]} 40. a3 {[%clk
00:07:52]} {[%emt 00:00:26]} a4 {[%clk 00:00:22]} {[%emt 00:00:13]} 41. Rb4+
{[%clk 00:07:58]} {[%emt 00:00:04]} Kc5 {[%clk 00:00:32]} {[%emt 00:00:01]} 42.
Rxa4 {[%clk 00:06:44]} {[%emt 00:01:24]} Rxb2 {[%clk 00:00:40]} {[%emt
00:00:02]} 43. Ra6 {[%clk 00:06:52]} {[%emt 00:00:02]} Rb3+ {[%clk 00:00:47]}
{[%emt 00:00:02]} 44. Kh4 {[%clk 00:06:56]} {[%emt 00:00:05]} g5+ {[%clk
00:00:56]} {[%emt 00:00:01]} 45. Kh5 {[%clk 00:07:05]} {[%emt 00:00:01]} Rxh3
{[%clk 00:01:05]} {[%emt 00:00:01]} 46. Kg6 {[%clk 00:07:12]} {[%emt 00:00:03]}
Rh4 {[%clk 00:01:09]} {[%emt 00:00:06]} 47. Kf5 {[%clk 00:07:18]} {[%emt
00:00:04]} Kb5 {[%clk 00:01:16]} {[%emt 00:00:03]} 48. Re6 {[%clk 00:07:15]}
{[%emt 00:00:12]} Ka4 {[%clk 00:01:24]} {[%emt 00:00:03]} 49. Re3 {[%clk
00:07:14]} {[%emt 00:00:10]} Rh2 {[%clk 00:01:12]} {[%emt 00:00:22]} 50. Kg6
{[%clk 00:07:02]} {[%emt 00:00:21]} Kb5 {[%clk 00:01:15]} {[%emt 00:00:07]} 51.
Kf5 {[%clk 00:06:55]} {[%emt 00:00:18]} Kc4 {[%clk 00:01:17]} {[%emt 00:00:08]}
52. a4 {[%clk 00:06:46]} {[%emt 00:00:19]} Kb4 {[%clk 00:00:54]} {[%emt
00:00:33]} 53. Re4+ {[%clk 00:06:55]} {[%emt 00:00:01]} Ka5 {[%clk 00:00:55]}
{[%emt 00:00:09]} 54. Kg6 {[%clk 00:07:04]} {[%emt 00:00:01]} Rh4 {[%clk
00:01:00]} {[%emt 00:00:05]} 55. Kf5 {[%clk 00:07:08]} {[%emt 00:00:06]} Rh3
{[%clk 00:01:07]} {[%emt 00:00:03]} 56. Kg6 {[%clk 00:07:15]} {[%emt 00:00:03]}
Rh4 {[%clk 00:01:01]} {[%emt 00:00:16]} 57. Kf5 {[%clk 00:07:24]} {[%emt
00:00:01]} Rh1 {[%clk 00:00:50]} {[%emt 00:00:21]} 58. Kg6 {[%clk 00:07:32]}
{[%emt 00:00:03]} Rh2 {[%clk 00:00:57]} {[%emt 00:00:02]} 59. Kf5 {[%clk
00:07:41]} {[%emt 00:00:02]} Kb6 {[%emt 00:00:45]} 60. Re6+ {[%clk 00:07:32]}
Ka5 {[%clk 00:00:44]} {[%emt 00:00:05]} 61. Re4 {[%clk 00:07:41]} {[%emt
00:00:02]} Rf2 {[%clk 00:00:43]} {[%emt 00:00:11]} 62. Kg6 {[%clk 00:07:48]}
{[%emt 00:00:02]} Rh2 {[%clk 00:00:41]} {[%emt 00:00:12]} 63. Kf5 {[%clk
00:07:56]} {[%emt 00:00:02]} Kb6 {[%clk 00:00:40]} {[%emt 00:00:11]} 64. Re6+
{[%clk 00:08:05]} {[%emt 00:00:01]} Kc5 {[%clk 00:00:45]} {[%emt 00:00:05]} 65.
a5 {[%clk 00:08:01]} {[%emt 00:00:15]} Rg2 {[%clk 00:00:25]} {[%emt 00:00:29]}
66. Rxh6 {[%clk 00:08:05]} {[%emt 00:00:06]} Kb5 {[%clk 00:00:31]} {[%emt
00:00:05]} 67. a6 {[%clk 00:08:13]} {[%emt 00:00:01]} Ra2 {[%clk 00:00:37]}
{[%emt 00:00:02]} 68. Kxg5 {[%clk 00:08:15]} {[%emt 00:00:09]} Ra5 {[%clk
00:00:41]} {[%emt 00:00:07]} 69. Kh5 {[%clk 00:07:43]} {[%emt 00:00:42]} Kc4+
{[%clk 00:00:31]} {[%emt 00:00:14]} 70. g5 {[%clk 00:07:50]} {[%emt 00:00:07]}
Kd5 {[%clk 00:00:38]} {[%emt 00:00:03]} 71. g6 {[%clk 00:07:38]} {[%emt
00:00:24]} Ke6+ {[%clk 00:00:36]} {[%emt 00:00:10]} 72. Kg4 {[%clk 00:07:45]}
{[%emt 00:00:03]} Kf6 {[%clk 00:00:38]} {[%emt 00:00:09]} 73. Rh7 {[%clk
00:06:02]} {[%emt 00:01:53]} Kxg6 {[%clk 00:00:43]} {[%emt 00:00:06]} 74. Ra7
{[%clk 00:06:10]} Ra4+ {[%clk 00:00:50]} {[%emt 00:00:02]} 75. Kf3 {[%clk
00:06:19]} {[%emt 00:00:02]} Kf5 {[%clk 00:00:59]} 76. Ra8 {[%clk 00:06:25]}
{[%emt 00:00:04]} Ra3+ {[%clk 00:01:05]} {[%emt 00:00:04]} 77. Ke2 {[%clk
00:06:34]} Ke6 {[%clk 00:00:41]} {[%emt 00:00:34]} 78. a7 {[%clk 00:06:36]}
{[%emt 00:00:08]} Kd7 {[%clk 00:00:50]} 79. Rh8 {[%clk 00:06:44]} {[%emt
00:00:01]} Ra2+ {[%clk 00:00:52]} {[%emt 00:00:09]} 80. Kd3 {[%clk 00:06:52]}
{[%emt 00:00:02]} Ra3+ {[%clk 00:00:57]} {[%emt 00:00:06]} 81. Kc4 {[%clk
00:07:01]} Ra4+ {[%clk 00:01:00]} {[%emt 00:00:07]} 82. Kb5 {[%clk 00:07:10]}
{[%emt 00:00:01]} 1-0